[Event "Titled Tuesday Blitz April 4 Early 2023"]
[White "Santos Flores, Alberto"]
[Black "Blokhin, Sofia"]
[WhiteFideId "3601234"]
[BlackFideId "4508190"]
[WhiteElo "2235"]
[BlackElo "1994"]
[Result "1-0"]
[Round "02"]
[TimeControl "180+2"]
[Date "2023.04.04"]
[WhiteClock "0:00:38"]
[BlackClock "0:00:06"]

1. e4 {[%clk 0:02:56]}  c5 {[%clk 0:02:59]} 2. Nf3 {[%clk 0:02:56]}  Nc6 {[%clk 0:02:58]} 3. Nc3 {[%clk 0:02:56]}  e6 {[%clk 0:02:53]} 4. d4 {[%clk 0:02:56]}  cxd4 {[%clk 0:02:52]} 5. Nxd4 {[%clk 0:02:57]}  Bb4 {[%clk 0:02:49]} 6. Nxc6 {[%clk 0:02:51]}  bxc6 {[%clk 0:02:47]} 7. Qg4 {[%clk 0:02:48]}  Qf6 {[%clk 0:02:37]} 8. Bd2 {[%clk 0:02:45]}  d5 {[%clk 0:02:31]} 9. Bd3 {[%clk 0:02:43]}  e5 {[%clk 0:02:21]} 10. Qg3 {[%clk 0:02:40]}  d4 {[%clk 0:02:13]} 11. Nb1 {[%clk 0:02:40]}  Be7 {[%clk 0:02:04]} 12. O-O {[%clk 0:02:31]}  Nh6 {[%clk 0:02:02]} 13. f4 {[%clk 0:02:31]}  exf4 {[%clk 0:01:51]} 14. Bxf4 {[%clk 0:02:30]}  Qg6 {[%clk 0:01:43]} 15. Qf3 {[%clk 0:02:20]}  Bg4 {[%clk 0:01:34]} 16. Qf2 {[%clk 0:02:20]}  c5 {[%clk 0:01:19]} 17. e5 {[%clk 0:02:05]}  Bf5 {[%clk 0:01:01]} 18. Bxh6 {[%clk 0:01:56]}  Bxd3 {[%clk 0:00:59]} 19. cxd3 {[%clk 0:01:56]}  gxh6 {[%clk 0:00:57]} 20. Nd2 {[%clk 0:01:56]}  O-O {[%clk 0:00:52]} 21. Ne4 {[%clk 0:01:56]}  c4 {[%clk 0:00:44]} 22. Qe2 {[%clk 0:01:44]}  cxd3 {[%clk 0:00:40]} 23. Qxd3 {[%clk 0:01:45]}  f5 {[%clk 0:00:37]} 24. exf6 {[%clk 0:01:37]}  Bxf6 {[%clk 0:00:33]} 25. Nxf6+ {[%clk 0:01:24]}  Rxf6 {[%clk 0:00:34]} 26. Qxg6+ {[%clk 0:01:23]}  Rxg6 {[%clk 0:00:34]} 27. Rad1 {[%clk 0:01:24]}  Rb8 {[%clk 0:00:20]} 28. b3 {[%clk 0:01:23]}  Rd8 {[%clk 0:00:19]} 29. Rd3 {[%clk 0:01:21]}  Rg4 {[%clk 0:00:19]} 30. Re1 {[%clk 0:01:13]}  h5 {[%clk 0:00:18]} 31. g3 {[%clk 0:01:10]}  h4 {[%clk 0:00:18]} 32. Kg2 {[%clk 0:01:10]}  hxg3 {[%clk 0:00:18]} 33. hxg3 {[%clk 0:01:11]}  h5 {[%clk 0:00:17]} 34. Rf1 {[%clk 0:01:08]}  Kg7 {[%clk 0:00:17]} 35. Rf4 {[%clk 0:01:08]}  Rxf4 {[%clk 0:00:16]} 36. gxf4 {[%clk 0:01:08]}  Kf6 {[%clk 0:00:17]} 37. Kf3 {[%clk 0:01:03]}  Kf5 {[%clk 0:00:17]} 38. Rd1 {[%clk 0:01:04]}  d3 {[%clk 0:00:15]} 39. Ke3 {[%clk 0:01:04]}  d2 {[%clk 0:00:15]} 40. b4 {[%clk 0:01:00]}  Re8+ {[%clk 0:00:14]} 41. Kf3 {[%clk 0:01:00]}  Re4 {[%clk 0:00:13]} 42. Rxd2 {[%clk 0:00:56]}  Rxf4+ {[%clk 0:00:14]} 43. Kg3 {[%clk 0:00:57]}  Rxb4 {[%clk 0:00:14]} 44. Rd5+ {[%clk 0:00:57]}  Kg6 {[%clk 0:00:14]} 45. Ra5 {[%clk 0:00:56]}  Rg4+ {[%clk 0:00:13]} 46. Kh3 {[%clk 0:00:56]}  Rc4 {[%clk 0:00:13]} 47. Rxa7 {[%clk 0:00:56]}  Rc5 {[%clk 0:00:12]} 48. a4 {[%clk 0:00:56]}  Kg5 {[%clk 0:00:12]} 49. a5 {[%clk 0:00:54]}  Rc3+ {[%clk 0:00:12]} 50. Kg2 {[%clk 0:00:54]}  Ra3 {[%clk 0:00:13]} 51. a6 {[%clk 0:00:53]}  Kg4 {[%clk 0:00:13]} 52. Ra8 {[%clk 0:00:53]}  Ra2+ {[%clk 0:00:13]} 53. Kf1 {[%clk 0:00:50]}  Kf3 {[%clk 0:00:13]} 54. Ke1 {[%clk 0:00:48]}  Ke3 {[%clk 0:00:13]} 55. Kd1 {[%clk 0:00:48]}  h4 {[%clk 0:00:12]} 56. a7 {[%clk 0:00:45]}  Kd3 {[%clk 0:00:10]} 57. Rd8+ {[%clk 0:00:44]}  Ke3 {[%clk 0:00:10]} 58. a8=Q {[%clk 0:00:43]}  Rxa8 {[%clk 0:00:11]} 59. Rxa8 {[%clk 0:00:44]}  Kf2 {[%clk 0:00:10]} 60. Rh8 {[%clk 0:00:38]}  Kg3 {[%clk 0:00:10]} 61. Ke2 {[%clk 0:00:37]}  h3 {[%clk 0:00:06]} 62. Kf1 {[%clk 0:00:37]}  Kh2 {[%clk 0:00:06]} 63. Kf2 {[%clk 0:00:37]}  Kh1 {[%clk 0:00:06]} 64. Rxh3# {[%clk 0:00:38]} 1-0


[Site "https://www.chess.com"]

[Event "Titled Tuesday Blitz April 4 Early 2023"]
[White "Andreassen, Lars"]
[Black "Przybylski, Wojciech"]
[WhiteFideId "1504878"]
[BlackFideId "1117599"]
[WhiteElo "2119"]
[BlackElo "2222"]
[Result "0-1"]
[Round "02"]
[TimeControl "180+2"]
[Date "2023.04.04"]
[WhiteClock "0:00:03"]
[BlackClock "0:00:04"]

1. d4 {[%clk 0:03:00]}  Nf6 {[%clk 0:02:33]} 2. Nf3 {[%clk 0:03:01]}  d5 {[%clk 0:02:31]} 3. Bg5 {[%clk 0:03:01]}  Ne4 {[%clk 0:02:30]} 4. Bh4 {[%clk 0:03:01]}  Bf5 {[%clk 0:02:29]} 5. e3 {[%clk 0:03:01]}  c6 {[%clk 0:02:27]} 6. c3 {[%clk 0:03:00]}  Nd7 {[%clk 0:02:26]} 7. Nbd2 {[%clk 0:02:59]}  Nxd2 {[%clk 0:02:25]} 8. Qxd2 {[%clk 0:02:59]}  Qb6 {[%clk 0:02:20]} 9. Be2 {[%clk 0:02:58]}  h6 {[%clk 0:02:20]} 10. O-O {[%clk 0:02:58]}  e6 {[%clk 0:02:16]} 11. a4 {[%clk 0:02:56]}  a5 {[%clk 0:02:15]} 12. Rfe1 {[%clk 0:02:42]}  Bd6 {[%clk 0:02:13]} 13. Bg3 {[%clk 0:02:41]}  Be7 {[%clk 0:02:12]} 14. Ne5 {[%clk 0:02:38]}  Nf6 {[%clk 0:02:10]} 15. f3 {[%clk 0:02:36]}  h5 {[%clk 0:02:03]} 16. Bd3 {[%clk 0:02:35]}  Bxd3 {[%clk 0:02:01]} 17. Nxd3 {[%clk 0:02:31]}  h4 {[%clk 0:02:01]} 18. Bf2 {[%clk 0:02:28]}  h3 {[%clk 0:02:01]} 19. g3 {[%clk 0:02:28]}  Qc7 {[%clk 0:01:54]} 20. e4 {[%clk 0:02:27]}  dxe4 {[%clk 0:01:51]} 21. fxe4 {[%clk 0:02:27]}  Rd8 {[%clk 0:01:44]} 22. Qe2 {[%clk 0:02:22]}  Nd7 {[%clk 0:01:38]} 23. Be3 {[%clk 0:02:17]}  Nb6 {[%clk 0:01:29]} 24. Bf4 {[%clk 0:02:16]}  Bd6 {[%clk 0:01:29]} 25. Bxd6 {[%clk 0:02:10]}  Qxd6 {[%clk 0:01:28]} 26. Nc5 {[%clk 0:02:10]}  Qe7 {[%clk 0:01:26]} 27. Qg4 {[%clk 0:02:02]}  g6 {[%clk 0:01:23]} 28. Rf1 {[%clk 0:02:02]}  e5 {[%clk 0:01:19]} 29. Rad1 {[%clk 0:01:53]}  Nc4 {[%clk 0:01:07]} 30. Qe2 {[%clk 0:01:46]}  Nd6 {[%clk 0:01:07]} 31. Rde1 {[%clk 0:01:33]}  O-O {[%clk 0:00:53]} 32. Qg4 {[%clk 0:01:26]}  b6 {[%clk 0:00:48]} 33. Nd3 {[%clk 0:01:19]}  exd4 {[%clk 0:00:48]} 34. cxd4 {[%clk 0:01:20]}  Nc4 {[%clk 0:00:48]} 35. e5 {[%clk 0:01:04]}  c5 {[%clk 0:00:41]} 36. e6 {[%clk 0:00:48]}  Rxd4 {[%clk 0:00:24]} 37. Qxh3 {[%clk 0:00:30]}  fxe6 {[%clk 0:00:08]} 38. Rxf8+ {[%clk 0:00:26]}  Qxf8 {[%clk 0:00:08]} 39. Qxe6+ {[%clk 0:00:27]}  Kg7 {[%clk 0:00:04]} 40. Nf4 {[%clk 0:00:24]}  Rd6 {[%clk 0:00:03]} 41. Qe7+ {[%clk 0:00:21]}  Qxe7 {[%clk 0:00:03]} 42. Rxe7+ {[%clk 0:00:22]}  Kf6 {[%clk 0:00:04]} 43. Re2 {[%clk 0:00:18]}  g5 {[%clk 0:00:04]} 44. Nh5+ {[%clk 0:00:16]}  Kg6 {[%clk 0:00:04]} 45. g4 {[%clk 0:00:17]}  Rd1+ {[%clk 0:00:03]} 46. Kf2 {[%clk 0:00:16]}  Rd6 {[%clk 0:00:04]} 47. b3 {[%clk 0:00:15]}  Nd2 {[%clk 0:00:04]} 48. Ng3 {[%clk 0:00:13]}  Nxb3 {[%clk 0:00:04]} 49. Nf5 {[%clk 0:00:12]}  Rf6 {[%clk 0:00:04]} 50. Re7 {[%clk 0:00:08]}  Rc6 {[%clk 0:00:04]} 51. Rg7+ {[%clk 0:00:08]}  Kf6 {[%clk 0:00:04]} 52. Rh7 {[%clk 0:00:08]}  Ke5 {[%clk 0:00:04]} 53. Ke3 {[%clk 0:00:04]}  Nd4 {[%clk 0:00:04]} 54. Re7+ {[%clk 0:00:03]}  Kf6 {[%clk 0:00:04]} 0-1


[Site "https://www.chess.com"]

[Event "Titled Tuesday Blitz April 4 Early 2023"]
[White "Shubenkova, Veronika"]
[Black "rionelG"]
[WhiteFideId "44124040"]
[WhiteElo "2027"]
[BlackElo "2205"]
[Result "1-0"]
[Round "02"]
[TimeControl "180+2"]
[Date "2023.04.04"]
[WhiteClock "0:02:11"]
[BlackClock "0:01:08"]

1. e4 {[%clk 0:03:00]}  c5 {[%clk 0:02:59]} 2. Nc3 {[%clk 0:03:00]}  d6 {[%clk 0:02:59]} 3. g3 {[%clk 0:03:01]}  Nc6 {[%clk 0:02:58]} 4. Bg2 {[%clk 0:03:01]}  g6 {[%clk 0:02:59]} 5. d3 {[%clk 0:03:01]}  Bg7 {[%clk 0:02:59]} 6. f4 {[%clk 0:03:01]}  e6 {[%clk 0:02:59]} 7. Nf3 {[%clk 0:03:02]}  Nge7 {[%clk 0:02:59]} 8. O-O {[%clk 0:03:02]}  O-O {[%clk 0:03:00]} 9. Rb1 {[%clk 0:03:02]}  Rb8 {[%clk 0:03:00]} 10. Ne2 {[%clk 0:03:02]}  b5 {[%clk 0:02:58]} 11. Be3 {[%clk 0:03:02]}  b4 {[%clk 0:02:53]} 12. g4 {[%clk 0:03:01]}  f5 {[%clk 0:02:53]} 13. gxf5 {[%clk 0:02:59]}  exf5 {[%clk 0:02:52]} 14. Ng3 {[%clk 0:03:00]}  fxe4 {[%clk 0:02:33]} 15. dxe4 {[%clk 0:03:00]}  Bg4 {[%clk 0:02:33]} 16. h3 {[%clk 0:02:59]}  Bxf3 {[%clk 0:02:32]} 17. Qxf3 {[%clk 0:02:59]}  Nd4 {[%clk 0:02:32]} 18. Bxd4 {[%clk 0:02:57]}  Bxd4+ {[%clk 0:02:27]} 19. Kh1 {[%clk 0:02:57]}  Be5 {[%clk 0:02:08]} 20. Qb3+ {[%clk 0:02:50]}  d5 {[%clk 0:02:02]} 21. fxe5 {[%clk 0:02:50]}  c4 {[%clk 0:02:01]} 22. Qe3 {[%clk 0:02:49]}  d4 {[%clk 0:02:00]} 23. Qh6 {[%clk 0:02:48]}  Qa5 {[%clk 0:01:52]} 24. e6 {[%clk 0:02:46]}  Qe5 {[%clk 0:01:49]} 25. Ne2 {[%clk 0:02:42]}  d3 {[%clk 0:01:41]} 26. cxd3 {[%clk 0:02:42]}  cxd3 {[%clk 0:01:41]} 27. Nf4 {[%clk 0:02:42]}  d2 {[%clk 0:01:39]} 28. Nd5 {[%clk 0:02:42]}  Nc6 {[%clk 0:01:26]} 29. Qxd2 {[%clk 0:02:36]}  Qxe6 {[%clk 0:01:16]} 30. Rbe1 {[%clk 0:02:32]}  Ne5 {[%clk 0:01:14]} 31. Rxf8+ {[%clk 0:02:27]}  Rxf8 {[%clk 0:01:13]} 32. Qxb4 {[%clk 0:02:23]}  Nd3 {[%clk 0:01:12]} 33. Ne7+ {[%clk 0:02:16]}  Kh8 {[%clk 0:01:10]} 34. Qc3+ {[%clk 0:02:14]}  Ne5 {[%clk 0:01:10]} 35. Nc6 {[%clk 0:02:11]}  Qxc6 {[%clk 0:01:10]} 36. Qxe5+ {[%clk 0:02:11]}  Kg8 {[%clk 0:01:08]} 37. Qd5+ {[%clk 0:02:11]} 1-0


[Site "https://www.chess.com"]

[Event "Titled Tuesday Blitz April 4 Early 2023"]
[White "Jumanov, Elbek"]
[Black "Dahlgren, James Allen"]
[WhiteFideId "14202905"]
[BlackFideId "22256873"]
[WhiteElo "2055"]
[BlackElo "2202"]
[Result "1-0"]
[Round "02"]
[TimeControl "180+2"]
[Date "2023.04.04"]
[WhiteClock "0:00:24"]
[BlackClock "0:00:06"]

1. c4 {[%clk 0:02:55]}  e6 {[%clk 0:03:00]} 2. Nf3 {[%clk 0:02:55]}  c5 {[%clk 0:03:01]} 3. g3 {[%clk 0:02:54]}  Nf6 {[%clk 0:03:02]} 4. Nc3 {[%clk 0:02:54]}  d5 {[%clk 0:03:02]} 5. cxd5 {[%clk 0:02:53]}  exd5 {[%clk 0:03:03]} 6. d4 {[%clk 0:02:54]}  Be6 {[%clk 0:03:02]} 7. Bg2 {[%clk 0:02:54]}  Nc6 {[%clk 0:03:03]} 8. O-O {[%clk 0:02:54]}  Be7 {[%clk 0:03:02]} 9. dxc5 {[%clk 0:02:53]}  Bxc5 {[%clk 0:03:01]} 10. Bg5 {[%clk 0:02:53]}  O-O {[%clk 0:03:00]} 11. Rc1 {[%clk 0:02:26]}  Be7 {[%clk 0:02:58]} 12. Nd4 {[%clk 0:02:19]}  Nxd4 {[%clk 0:02:52]} 13. Qxd4 {[%clk 0:02:17]}  h6 {[%clk 0:02:53]} 14. Bf4 {[%clk 0:02:11]}  Qd7 {[%clk 0:02:46]} 15. Rfd1 {[%clk 0:02:06]}  Rfd8 {[%clk 0:02:42]} 16. a3 {[%clk 0:01:33]}  b6 {[%clk 0:02:30]} 17. e4 {[%clk 0:01:10]}  dxe4 {[%clk 0:02:24]} 18. Qxd7 {[%clk 0:01:08]}  Rxd7 {[%clk 0:02:18]} 19. Rxd7 {[%clk 0:01:07]}  Bxd7 {[%clk 0:02:05]} 20. Nxe4 {[%clk 0:01:05]}  Rc8 {[%clk 0:02:03]} 21. Rd1 {[%clk 0:00:38]}  Bc6 {[%clk 0:01:51]} 22. Nc3 {[%clk 0:00:35]}  Bxg2 {[%clk 0:01:46]} 23. Kxg2 {[%clk 0:00:36]}  Rd8 {[%clk 0:01:27]} 24. Rxd8+ {[%clk 0:00:32]}  Bxd8 {[%clk 0:01:28]} 25. b3 {[%clk 0:00:33]}  a6 {[%clk 0:01:23]} 26. a4 {[%clk 0:00:33]}  Kf8 {[%clk 0:01:12]} 27. Kf3 {[%clk 0:00:33]}  Ke7 {[%clk 0:01:09]} 28. h3 {[%clk 0:00:33]}  Ke6 {[%clk 0:01:05]} 29. Bd2 {[%clk 0:00:29]}  Nd5 {[%clk 0:01:00]} 30. Ne2 {[%clk 0:00:29]}  Bf6 {[%clk 0:00:49]} 31. Ke4 {[%clk 0:00:29]}  Bb2 {[%clk 0:00:36]} 32. Nd4+ {[%clk 0:00:25]}  Kd6 {[%clk 0:00:27]} 33. Nf5+ {[%clk 0:00:25]}  Ke6 {[%clk 0:00:27]} 34. Nd4+ {[%clk 0:00:24]}  Kd6 {[%clk 0:00:27]} 35. Nf5+ {[%clk 0:00:24]}  Ke6 {[%clk 0:00:27]} 36. Ne3 {[%clk 0:00:25]}  Nxe3 {[%clk 0:00:25]} 37. Kxe3 {[%clk 0:00:22]}  Kd5 {[%clk 0:00:20]} 38. Kd3 {[%clk 0:00:22]}  Bd4 {[%clk 0:00:19]} 39. f3 {[%clk 0:00:22]}  f5 {[%clk 0:00:18]} 40. g4 {[%clk 0:00:22]}  fxg4 {[%clk 0:00:14]} 41. fxg4 {[%clk 0:00:23]}  b5 {[%clk 0:00:12]} 42. h4 {[%clk 0:00:23]}  bxa4 {[%clk 0:00:12]} 43. bxa4 {[%clk 0:00:22]}  Bf2 {[%clk 0:00:09]} 44. h5 {[%clk 0:00:21]}  Bd4 {[%clk 0:00:10]} 45. Bf4 {[%clk 0:00:20]}  Bf6 {[%clk 0:00:09]} 46. Be3 {[%clk 0:00:20]}  Ba1 {[%clk 0:00:09]} 47. Bb6 {[%clk 0:00:19]}  Bf6 {[%clk 0:00:09]} 48. Ba5 {[%clk 0:00:20]}  Ba1 {[%clk 0:00:09]} 49. Bb4 {[%clk 0:00:20]}  Bf6 {[%clk 0:00:09]} 50. Bf8 {[%clk 0:00:21]}  Be5 {[%clk 0:00:08]} 51. Ke3 {[%clk 0:00:21]}  Bc3 {[%clk 0:00:07]} 52. Kf4 {[%clk 0:00:21]}  Kc4 {[%clk 0:00:04]} 53. Kf5 {[%clk 0:00:21]}  Kb3 {[%clk 0:00:03]} 54. Kg6 {[%clk 0:00:19]}  Kxa4 {[%clk 0:00:03]} 55. Bxg7 {[%clk 0:00:20]}  Bxg7 {[%clk 0:00:02]} 56. Kxg7 {[%clk 0:00:21]}  Kb3 {[%clk 0:00:03]} 57. g5 {[%clk 0:00:21]}  a5 {[%clk 0:00:04]} 58. gxh6 {[%clk 0:00:21]}  a4 {[%clk 0:00:05]} 59. h7 {[%clk 0:00:22]}  a3 {[%clk 0:00:06]} 60. h8=Q {[%clk 0:00:23]}  a2 {[%clk 0:00:07]} 61. Kg6 {[%clk 0:00:23]}  Kc2 {[%clk 0:00:06]} 62. Qa1 {[%clk 0:00:24]}  Kb3 {[%clk 0:00:06]} 63. h6 {[%clk 0:00:24]} 1-0


[Site "https://www.chess.com"]

[Event "Titled Tuesday Blitz April 4 Early 2023"]
[White "Rosenberg, Evan S"]
[Black "Manukyan, Artyom"]
[WhiteFideId "2019299"]
[BlackFideId "13305786"]
[WhiteElo "2186"]
[BlackElo "2078"]
[Result "1/2-1/2"]
[Round "02"]
[TimeControl "180+2"]
[Date "2023.04.04"]
[WhiteClock "0:00:19"]
[BlackClock "0:00:56"]

1. d4 {[%clk 0:03:00]}  e6 {[%clk 0:02:52]} 2. Nf3 {[%clk 0:03:00]}  f5 {[%clk 0:02:52]} 3. g3 {[%clk 0:02:56]}  Nf6 {[%clk 0:02:35]} 4. Bg2 {[%clk 0:02:56]}  d5 {[%clk 0:02:36]} 5. c4 {[%clk 0:02:56]}  c6 {[%clk 0:02:36]} 6. Nc3 {[%clk 0:02:54]}  Bd6 {[%clk 0:02:35]} 7. Bf4 {[%clk 0:02:53]}  O-O {[%clk 0:02:35]} 8. Bxd6 {[%clk 0:02:52]}  Qxd6 {[%clk 0:02:36]} 9. Qc2 {[%clk 0:02:50]}  Bd7 {[%clk 0:02:37]} 10. O-O {[%clk 0:02:48]}  Be8 {[%clk 0:02:36]} 11. b3 {[%clk 0:02:29]}  Bh5 {[%clk 0:02:34]} 12. e3 {[%clk 0:02:29]}  Nbd7 {[%clk 0:02:33]} 13. cxd5 {[%clk 0:02:24]}  exd5 {[%clk 0:02:25]} 14. Rac1 {[%clk 0:02:23]}  Ne4 {[%clk 0:02:26]} 15. Nd2 {[%clk 0:02:03]}  Rae8 {[%clk 0:02:23]} 16. Rfe1 {[%clk 0:02:01]}  Ndf6 {[%clk 0:02:17]} 17. f3 {[%clk 0:01:51]}  Nxc3 {[%clk 0:02:03]} 18. Qxc3 {[%clk 0:01:51]}  Re7 {[%clk 0:02:01]} 19. Qc5 {[%clk 0:01:42]}  Qd7 {[%clk 0:01:53]} 20. Qxa7 {[%clk 0:01:36]}  Rfe8 {[%clk 0:01:53]} 21. Kf2 {[%clk 0:01:35]}  g5 {[%clk 0:01:51]} 22. b4 {[%clk 0:01:20]}  Qd6 {[%clk 0:01:42]} 23. Qc5 {[%clk 0:01:18]}  Qb8 {[%clk 0:01:38]} 24. b5 {[%clk 0:01:12]}  g4 {[%clk 0:01:34]} 25. f4 {[%clk 0:01:04]}  Re6 {[%clk 0:01:33]} 26. a4 {[%clk 0:00:53]}  Bf7 {[%clk 0:01:31]} 27. a5 {[%clk 0:00:50]}  h5 {[%clk 0:01:27]} 28. a6 {[%clk 0:00:49]}  cxb5 {[%clk 0:01:26]} 29. a7 {[%clk 0:00:46]}  Qa8 {[%clk 0:01:24]} 30. Ra1 {[%clk 0:00:40]}  Ra6 {[%clk 0:01:09]} 31. Rxa6 {[%clk 0:00:26]}  bxa6 {[%clk 0:01:10]} 32. Qb6 {[%clk 0:00:27]}  Re6 {[%clk 0:00:59]} 33. Qb8+ {[%clk 0:00:21]}  Re8 {[%clk 0:00:58]} 34. Qb6 {[%clk 0:00:19]}  Re6 {[%clk 0:00:57]} 35. Qb8+ {[%clk 0:00:19]}  Re8 {[%clk 0:00:56]} 36. Qb6 {[%clk 0:00:19]} 1/2-1/2


[Site "https://www.chess.com"]

[Event "Titled Tuesday Blitz April 4 Early 2023"]
[White "Arcos Facio, Mateo"]
[Black "Petrova, Irina"]
[WhiteFideId "3001199"]
[BlackFideId "14124122"]
[WhiteElo "2156"]
[BlackElo "2084"]
[Result "0-1"]
[Round "02"]
[TimeControl "180+2"]
[Date "2023.04.04"]
[WhiteClock "0:00:01"]
[BlackClock "0:00:59"]

1. e4 {[%clk 0:03:00]}  d6 {[%clk 0:03:00]} 2. d4 {[%clk 0:02:58]}  Nf6 {[%clk 0:03:01]} 3. Nc3 {[%clk 0:02:58]}  e5 {[%clk 0:03:00]} 4. Nf3 {[%clk 0:02:57]}  Nbd7 {[%clk 0:02:59]} 5. g4 {[%clk 0:02:46]}  d5 {[%clk 0:02:56]} 6. dxe5 {[%clk 0:02:37]}  Nxe4 {[%clk 0:02:54]} 7. Nxd5 {[%clk 0:02:24]}  Nb6 {[%clk 0:02:54]} 8. Nxb6 {[%clk 0:02:10]}  Qxd1+ {[%clk 0:02:54]} 9. Kxd1 {[%clk 0:02:10]}  axb6 {[%clk 0:02:55]} 10. Be3 {[%clk 0:01:59]}  Bxg4 {[%clk 0:02:53]} 11. Be2 {[%clk 0:01:59]}  O-O-O+ {[%clk 0:02:51]} 12. Kc1 {[%clk 0:01:59]}  Bc5 {[%clk 0:02:49]} 13. Rg1 {[%clk 0:01:39]}  Bxe3+ {[%clk 0:02:39]} 14. fxe3 {[%clk 0:01:37]}  h5 {[%clk 0:02:36]} 15. c3 {[%clk 0:01:30]}  g6 {[%clk 0:02:32]} 16. Kc2 {[%clk 0:01:28]}  Nd2 {[%clk 0:02:19]} 17. Rxg4 {[%clk 0:00:46]}  Nxf3 {[%clk 0:02:13]} 18. Ra4 {[%clk 0:00:46]}  Nxe5 {[%clk 0:02:09]} 19. Rf1 {[%clk 0:00:43]}  Rhe8 {[%clk 0:01:53]} 20. Rf6 {[%clk 0:00:36]}  Rd6 {[%clk 0:01:34]} 21. Bb5 {[%clk 0:00:26]}  Nc6 {[%clk 0:01:08]} 22. Rxf7 {[%clk 0:00:12]}  Kb8 {[%clk 0:01:05]} 23. e4 {[%clk 0:00:06]}  Red8 {[%clk 0:01:01]} 24. e5 {[%clk 0:00:01]}  Rd2+ {[%clk 0:01:00]} 25. Kb3 {[%clk 0:00:01]}  Nxe5 {[%clk 0:00:59]} 0-1


[Site "https://www.chess.com"]

[Event "Titled Tuesday Blitz April 4 Early 2023"]
[White "Namitbir Singh Walia"]
[Black "Larina, Maria"]
[WhiteFideId "35071068"]
[BlackFideId "24113182"]
[WhiteElo "2239"]
[BlackElo "1848"]
[Result "1-0"]
[Round "02"]
[TimeControl "180+2"]
[Date "2023.04.04"]
[WhiteClock "0:01:02"]
[BlackClock "0:00:04"]

1. e4 {[%clk 0:03:00]}  c6 {[%clk 0:02:58]} 2. d4 {[%clk 0:02:58]}  d5 {[%clk 0:02:58]} 3. exd5 {[%clk 0:02:58]}  cxd5 {[%clk 0:02:58]} 4. c3 {[%clk 0:02:59]}  Nc6 {[%clk 0:02:56]} 5. Bd3 {[%clk 0:02:59]}  e5 {[%clk 0:02:56]} 6. dxe5 {[%clk 0:02:56]}  Nxe5 {[%clk 0:02:57]} 7. Bc2 {[%clk 0:02:56]}  Nf6 {[%clk 0:02:56]} 8. Bf4 {[%clk 0:02:55]}  Bd6 {[%clk 0:02:55]} 9. Nf3 {[%clk 0:02:49]}  Nd3+ {[%clk 0:02:29]} 10. Qxd3 {[%clk 0:02:46]}  Bxf4 {[%clk 0:02:29]} 11. O-O {[%clk 0:02:45]}  O-O {[%clk 0:02:29]} 12. Nbd2 {[%clk 0:02:41]}  Bg4 {[%clk 0:02:14]} 13. Rfe1 {[%clk 0:02:34]}  Bh5 {[%clk 0:02:04]} 14. Qd4 {[%clk 0:02:32]}  Qd6 {[%clk 0:01:58]} 15. Ne5 {[%clk 0:02:32]}  Bh6 {[%clk 0:01:34]} 16. Ndf3 {[%clk 0:02:05]}  Rfe8 {[%clk 0:01:25]} 17. g4 {[%clk 0:01:59]}  Bg6 {[%clk 0:01:09]} 18. Bxg6 {[%clk 0:01:59]}  hxg6 {[%clk 0:01:09]} 19. g5 {[%clk 0:01:59]}  Nd7 {[%clk 0:00:30]} 20. gxh6 {[%clk 0:01:52]}  gxh6 {[%clk 0:00:31]} 21. Qf4 {[%clk 0:01:31]}  Nxe5 {[%clk 0:00:18]} 22. Rxe5 {[%clk 0:01:30]}  Kg7 {[%clk 0:00:13]} 23. Qd4 {[%clk 0:01:14]}  Kh7 {[%clk 0:00:12]} 24. Rae1 {[%clk 0:01:09]}  Rxe5 {[%clk 0:00:10]} 25. Qxe5 {[%clk 0:01:05]}  Qd7 {[%clk 0:00:09]} 26. Qf4 {[%clk 0:01:01]}  Rd8 {[%clk 0:00:08]} 27. Ne5 {[%clk 0:01:01]}  Qe6 {[%clk 0:00:05]} 28. Qxf7+ {[%clk 0:01:00]}  Qxf7 {[%clk 0:00:06]} 29. Nxf7 {[%clk 0:01:01]}  Rd7 {[%clk 0:00:06]} 30. Ne5 {[%clk 0:01:01]}  Re7 {[%clk 0:00:06]} 31. Nd3 {[%clk 0:01:02]}  Rd7 {[%clk 0:00:06]} 32. Re6 {[%clk 0:01:01]}  d4 {[%clk 0:00:06]} 33. c4 {[%clk 0:01:01]}  b6 {[%clk 0:00:06]} 34. b3 {[%clk 0:01:01]}  h5 {[%clk 0:00:06]} 35. f4 {[%clk 0:01:01]}  Kg7 {[%clk 0:00:05]} 36. Kf2 {[%clk 0:01:01]}  Kf7 {[%clk 0:00:06]} 37. Re4 {[%clk 0:01:01]}  Kf6 {[%clk 0:00:06]} 38. Kf3 {[%clk 0:01:01]}  Kf5 {[%clk 0:00:06]} 39. Re5+ {[%clk 0:01:01]}  Kf6 {[%clk 0:00:05]} 40. h4 {[%clk 0:01:02]}  a6 {[%clk 0:00:05]} 41. Rd5 {[%clk 0:01:02]}  Re7 {[%clk 0:00:05]} 42. Ne5 {[%clk 0:01:02]}  Re6 {[%clk 0:00:05]} 43. Rxd4 {[%clk 0:01:02]}  b5 {[%clk 0:00:04]} 44. Rd7 {[%clk 0:01:03]}  bxc4 {[%clk 0:00:04]} 45. Rf7# {[%clk 0:01:02]} 1-0


[Site "https://www.chess.com"]

[Event "Titled Tuesday Blitz April 4 Early 2023"]
[White "Yeritsyan, Hayk"]
[Black "Samarth, J Rao"]
[WhiteFideId "13307320"]
[BlackFideId "46652370"]
[WhiteElo "2441"]
[BlackElo "1564"]
[Result "0-1"]
[Round "02"]
[TimeControl "180+2"]
[Date "2023.04.04"]
[WhiteClock "0:00:09"]
[BlackClock "0:01:06"]

1. d4 {[%clk 0:01:42]}  d5 {[%clk 0:02:57]} 2. Nf3 {[%clk 0:01:42]}  Nf6 {[%clk 0:02:55]} 3. e3 {[%clk 0:01:40]}  e6 {[%clk 0:02:54]} 4. Bd3 {[%clk 0:01:41]}  c5 {[%clk 0:02:53]} 5. c3 {[%clk 0:01:41]}  Bd6 {[%clk 0:02:50]} 6. Nbd2 {[%clk 0:01:40]}  b6 {[%clk 0:02:50]} 7. Qe2 {[%clk 0:01:36]}  O-O {[%clk 0:02:48]} 8. e4 {[%clk 0:01:36]}  cxd4 {[%clk 0:02:48]} 9. e5 {[%clk 0:01:35]}  dxc3 {[%clk 0:02:48]} 10. bxc3 {[%clk 0:01:35]}  Nc6 {[%clk 0:02:46]} 11. exd6 {[%clk 0:01:30]}  Qxd6 {[%clk 0:02:47]} 12. O-O {[%clk 0:01:31]}  e5 {[%clk 0:02:46]} 13. Bc2 {[%clk 0:01:25]}  Bg4 {[%clk 0:02:38]} 14. Qe3 {[%clk 0:01:11]}  e4 {[%clk 0:02:32]} 15. Nd4 {[%clk 0:01:08]}  Ne5 {[%clk 0:02:31]} 16. a4 {[%clk 0:01:07]}  Rac8 {[%clk 0:02:30]} 17. Ba3 {[%clk 0:01:06]}  Qb8 {[%clk 0:02:22]} 18. Bxf8 {[%clk 0:01:05]}  Kxf8 {[%clk 0:02:21]} 19. f3 {[%clk 0:01:02]}  exf3 {[%clk 0:02:20]} 20. N2xf3 {[%clk 0:01:02]}  Nc4 {[%clk 0:02:20]} 21. Qf2 {[%clk 0:00:56]}  Bh5 {[%clk 0:02:16]} 22. Bb3 {[%clk 0:00:53]}  Nd6 {[%clk 0:02:12]} 23. Rac1 {[%clk 0:00:35]}  Nde4 {[%clk 0:02:12]} 24. Qe3 {[%clk 0:00:34]}  Kg8 {[%clk 0:02:06]} 25. c4 {[%clk 0:00:22]}  Re8 {[%clk 0:01:57]} 26. cxd5 {[%clk 0:00:20]}  Ng3 {[%clk 0:01:48]} 27. Qf2 {[%clk 0:00:14]}  Nge4 {[%clk 0:01:36]} 28. Qc2 {[%clk 0:00:13]}  Qf4 {[%clk 0:01:32]} 29. Nc6 {[%clk 0:00:13]}  Ng4 {[%clk 0:01:24]} 30. h3 {[%clk 0:00:13]}  Qe3+ {[%clk 0:01:19]} 31. Rf2 {[%clk 0:00:12]}  Ngxf2 {[%clk 0:01:17]} 32. Re1 {[%clk 0:00:11]}  Nxh3+ {[%clk 0:01:12]} 33. Kh2 {[%clk 0:00:12]}  Qf4+ {[%clk 0:01:12]} 34. Kh1 {[%clk 0:00:10]}  Nef2+ {[%clk 0:01:10]} 35. Qxf2 {[%clk 0:00:08]}  Nxf2+ {[%clk 0:01:11]} 36. Kg1 {[%clk 0:00:09]}  Rxe1+ {[%clk 0:01:11]} 37. Nxe1 {[%clk 0:00:09]}  Ne4 {[%clk 0:01:10]} 38. Nd3 {[%clk 0:00:09]}  Qd2 {[%clk 0:01:06]} 0-1


[Site "https://www.chess.com"]